Cogmind - Beta 15 @@@ ROGUE MODE // 2025.07.12 @ 13:05:45 Player: jumpy Result: Self-destructed Performance ------------- Evolutions (2) 1000 Regions Visited (5) 1000 Robots Destroyed (51) 255 Value Destroyed (1182) 1182 Prototype IDs (1) 20 Alien Tech Used (0) 0 Bonus (200) 200 TOTAL SCORE: 3657 Bonus ------- Entered Garrisons 200 Cogmind --------- Core Integrity 385/550 Matter 60/300 Energy 100/100 System Corruption 12% Temperature Cool (0) Movement Treading (320) Ox2 Location -8/Garrison Parts ------- > --- POWER (1) -------- (None) > --- PROPULSION (4) --- Light Treads > --- UTILITY (4) ------ High-capacity Storage Unit Improved Terrain Scanner > --- WEAPON (2) ------- Autogun > --- INVENTORY (20) --- Ion Engine Wheel Transport Network Coupler Rocket Launcher Mining Laser Plasma Cutter Peak State ------------ > --- POWER ------------ Improved Ion Engine > --- PROPULSION ------- Light Treads Light Treads Advanced Treads > --- UTILITY ---------- High-capacity Storage Unit Improved Terrain Scanner Terrain Scan Processor Seismic Detector > --- WEAPON ----------- Heavy Assault Rifle Heavy Assault Rifle > --- INVENTORY -------- Ion Engine Wheel Transport Network Coupler Autogun Autogun Rocket Launcher Mining Laser Plasma Cutter [Rating: 19] Favorites ----------- Power Ion Engine Engine Ion Engine Propulsion Light Treads Treads Light Treads Utility Seismic Detector Device Seismic Detector Storage Small Storage Unit Processor Terrain Scan Processor Weapon Heavy Assault Rifle Energy Gun Small Laser Energy Cannon Advanced Beam Cannon Ballistic Gun Heavy Assault Rifle Launcher Grenade Launcher Build | -11 -10 -10 -9 -8 -8 ------- Run | Yrd Mat Min Mat Mat Gar Slots Evolved 4 | . . . 2 2 . Power . | . . . . . . Propulsion 2 | . . . 1 1 . Utility 2 | . . . 1 1 . Weapon . | . . . . . . Parts Attached 31 | 7 . 1 15 8 . Power 4 | 1 . . 2 1 . Engine 4 | 1 . . 2 1 . Core . | . . . . . . Reactor . | . . . . . . Propulsion 9 | 2 . . 4 3 . Treads 9 | 2 . . 4 3 . Leg . | . . . . . . Wheel . | . . . . . . Hover . | . . . . . . Flight . | . . . . . . Utility 7 | 2 . . 3 2 . Device 3 | 1 . . 2 . . Storage 3 | 1 . . 1 1 . Processor 1 | . . . . 1 . Hackware . | . . . . . . Protection . | . . . . . . Artifact . | . . . . . . Weapon 11 | 2 . 1 6 2 . Energy Gun 2 | 1 . 1 . . . Energy Cannon 1 | . . . 1 . . Ballistic Gun 6 | 1 . . 4 1 . Ballistic Cannon . | . . . . . . Launcher 2 | . . . 1 1 . Special Weapon . | . . . . . . Impact Weapon . | . . . . . . Slashing Weapon . | . . . . . . Piercing Weapon . | . . . . . . Special Melee Weapon . | . . . . . . Unidentified Prototypes 1 | . . . 1 . . Parts Lost 17 | . . . 6 6 5 Power 2 | . . . 1 . 1 Propulsion 8 | . . . 3 3 2 Utility 3 | . . . 1 1 1 Weapon 4 | . . . 1 2 1 Highest Loss Streak 5 | . . . 2 3 5 To Critical Strikes . | . . . . . . Average Backups 6 | 3 6 8 6 7 6 Power . | . 1 1 . 1 1 Propulsion 1 | 1 2 2 1 1 1 Utility 1 | . 2 3 2 1 1 Weapon 2 | . 1 1 2 3 2 Tool/Special . | . . . . . . Unused Backups 8 | 2 . 1 1 . 4 Power . | . . . . . . Propulsion 2 | . . 1 . . 1 Utility 1 | . . . . . 1 Weapon 4 | 2 . . 1 . 1 Tool/Special 1 | . . . . . 1 Average Slot Usage (%) 89 | . 100 100 90 84 80 Engine 10 | . 14 14 9 9 8 Treads 25 | . 28 28 26 22 26 Device 17 | . 14 14 21 16 9 Storage 10 | . 14 14 11 9 9 Processor 3 | . . . . 9 9 Energy Gun 3 | . 14 14 1 . . Energy Cannon 1 | . . . 2 . . Ballistic Gun 16 | . 14 14 16 17 18 Peak Build Rating 19 | 7 8 9 14 19 17 Average Rating 12 | 5 7 8 12 17 16 On Entrance 9 | . 7 8 9 14 17 Naked Turns . | . . . . . . Heaviest Build 55 | 14 14 16 33 55 54 Greatest Support 62 | 40 40 40 60 62 62 Greatest Overweight (x) 1 | . . . 1 1 . Average Overweight (x) . | . . . . . . Largest Inventory Capacity 20 | 8 8 8 15 20 20 Average Capacity 12 | 7 8 8 10 19 20 Most Carried 10 | 6 8 8 10 10 6 Average Carried 6 | 3 6 7 6 7 6 Final Capacity 20 | 8 8 8 15 20 20 Final Carried 10 | 6 8 8 10 6 6 Class Distribution -------------------- 54% | Mutant 45% | Scavenger-Mutant Dominant Class ---------------- Mutant | -10/Materials Mutant | -10/Mines Scavenger-Mutant | -9/Materials Scavenger-Mutant | -8/Materials Mutant | -8/Garrison Resources | -11 -10 -10 -9 -8 -8 ----------- Run | Yrd Mat Min Mat Mat Gar Matter Collected 1012 | 312 . 21 393 286 . Remotely . | . . . . . . Salvage Created 1529 | 186 41 102 646 501 53 Parts 103 | 15 4 4 50 28 2 Haulers Intercepted 4 | . 1 . 3 . . Recyclers Shooed . | . . . . . . Parts Field Recycled . | . . . . . . Retrieved Matter . | . . . . . . Parts Self-Destructed . | . . . . . . Prevented . | . . . . . . Kills | -11 -10 -10 -9 -8 -8 ------- Run | Yrd Mat Min Mat Mat Gar Combat Hostiles Destroyed 36 | . . 2 19 14 1 Guns 24 | . . 2 13 8 1 Cannons 2 | . . . 2 . . AOE 10 | . . . 4 6 . Classes Destroyed 11 | 3 1 1 4 1 1 Worker 4 | 1 . . 1 2 . Builder 1 | . . . 1 . . Tunneler 4 | 4 . . . . . Hauler 4 | . 1 . 3 . . Recycler 1 | 1 . . . . . Watcher 1 | . . . 1 . . Swarmer 15 | . . . 11 4 . Grunt 11 | . . 2 4 5 . Brawler 1 | . . . . . 1 Duelist 1 | . . . . 1 . Sentry 8 | . . . 4 4 . Best Kill Streak 6 | 2 1 2 6 6 1 Combat Bots Only 6 | . . 2 5 6 1 Max Kills in Single Turn 3 | 1 1 1 3 3 1 Gunslinging . | . . . . . . Exploded 2 | . . . 2 2 . Melee . | . . . . . . Uniques/NPCs Destroyed . | . . . . . . Combat | -11 -10 -10 -9 -8 -8 -------- Run | Yrd Mat Min Mat Mat Gar Hostile Shots Fired 258 | . . 5 133 114 6 Missed 72 | . . 1 34 35 2 Hits 186 | . . 4 99 79 4 Melee 4 | . . . . . 4 Projectile 182 | . . 4 99 79 . Critical Strikes 6 | . . 1 2 3 . Damage Taken 2288 | . . 62 1106 1000 120 Core 296 | . . . 131 153 12 Absorbed by Shields . | . . . . . . Core Remaining (%) 89 | 100 . 100 67 . . Volleys Fired 142 | 14 3 4 75 40 6 Largest 2 | 2 2 2 2 2 2 Hottest 88 | 60 60 60 88 46 46 Shots Fired 254 | 28 6 8 129 74 9 Gun 217 | 28 6 8 98 68 9 Cannon 22 | . . . 22 . . Launcher 15 | . . . 9 6 . Special . | . . . . . . Kinetic 196 | 14 3 4 98 68 9 Thermal 43 | 14 3 4 22 . . Explosive 15 | . . . 9 6 . Electromagnetic . | . . . . . . Robot Hit Streak 23 | 4 4 4 8 23 3 Robot Miss Streak 5 | 3 3 2 5 3 2 Penetration Max . | . . . . . . Secondary Targets 2 | . . . 1 1 . Max Gunslinging Chain 1 | . . . 1 1 . Shots Hit Robots 162 | 13 3 5 79 57 5 Core Hits 77 | 7 1 5 36 26 2 Critical Kills . | . . . . . . Critical Parts Destroyed . | . . . . . . Critical Strikes . | . . . . . . Melee Attacks . | . . . . . . Impact . | . . . . . . Slashing . | . . . . . . Piercing . | . . . . . . Sneak Attacks . | . . . . . . Combat Hostiles . | . . . . . . Follow-up Attacks . | . . . . . . Damage Inflicted 3678 | 169 40 68 1709 1619 73 Guns 2132 | 169 40 59 940 851 73 Cannons 227 | . . . 227 . . Explosions 1307 | . . . 539 768 . Melee . | . . . . . . Ramming 12 | . . 9 3 . . Kinetic 2013 | 94 29 26 940 851 73 Thermal 610 | 75 11 33 491 . . Explosive 1043 | . . . 275 768 . Electromagnetic . | . . . . . . Impact . | . . . . . . Slashing . | . . . . . . Piercing . | . . . . . . Highest Corruption 12 | . . . 4 . 12 Average Corruption 4 | . . . 3 . 8 Corruption Purged . | . . . . . . Corruption Blocked . | . . . . . . Effects 6 | . . . 6 . . Message Errors 2 | . . . 2 . . Matter Fused 1 | . . . 1 . . Energy Discharges 1 | . . . 1 . . Data Loss (minor) 2 | . . . 2 . . Overload Shots . | . . . . . . Overflow Damage 9 | . . . 6 3 . Projectiles . | . . . . . . Explosions 9 | . . . 6 3 . Melee . | . . . . . . Knockbacks . | . . . . . . Impact . | . . . . . . Kinetic . | . . . . . . Secondary . | . . . . . . Self-Inflicted Damage 95 | . . . 95 . . Shots 1 | . . . 1 . . Rammed 4 | . . 2 2 . . Targets Rammed 4 | . . 2 2 . . Kicked . | . . . . . . Crushed . | . . . . . . Highest Temperature 155 | . . 54 155 17 . Average Temperature 44 | . . 32 54 7 . Received Heat Transfer 618 | . . 54 249 315 . Siege Activations . | . . . . . . Martial Activations . | . . . . . . Shielding Activations . | . . . . . . Robots Disrupted . | . . . . . . Combat Hostiles . | . . . . . . Robots Corrupted . | . . . . . . Combat Hostiles . | . . . . . . Parts Fried . | . . . . . . Impact Corruptions . | . . . . . . Robots Melted . | . . . . . . Combat Hostiles . | . . . . . . Parts Melted 1 | . . . 1 . . Heat Transferred 882 | 175 25 75 607 . . Parts Sabotaged . | . . . . . . Parts Stolen . | . . . . . . Parts Stripped . | . . . . . . Power Chain Reactions . | . . . . . . Alert | -11 -10 -10 -9 -8 -8 ------- Run | Yrd Mat Min Mat Mat Gar Maximum Alert Level 1 | . . . 1 1 1 Low Security (%) 74 | 100 100 100 53 75 87 Level 1 25 | . . . 46 24 12 Level 2 . | . . . . . . Level 3 . | . . . . . . Level 4 . | . . . . . . Level 5 . | . . . . . . High Security . | . . . . . . Max Security . | . . . . . . Peak Influence 294 | 5 30 57 294 293 235 Initial 185 | . . 7 . 108 185 Average 115 | 1 5 17 150 160 189 Influence Increases 1253 | 30 37 55 626 435 70 Destroy 0b10 Robot/C 720 | . . 40 380 280 20 Destroy 0b10 Robot/NC 75 | 30 5 . 30 10 . Destroy Leader 170 | . 2 10 88 70 . Successful Hack 21 | . . 5 16 . . Select Force Hacks 30 | . 30 . . . . Disable Machine 105 | . . . 60 45 . Anti-Garrison Action 50 | . . . . . 50 Destroy Structure 67 | . . . 37 30 . Lose Combat Pursuer 15 | . . . 15 . . Influence Decreases 1048 | 30 17 75 368 408 150 Entered New Map 263 | . . 13 . 150 100 Time Decay 615 | 30 17 62 308 198 . Lost Part 170 | . . . 60 60 50 Squads Dispatched 8 | . 1 . 1 6 . Investigation 2 | . 1 . . 1 . Extermination . | . . . . . . Reinforcement 4 | . . . 1 3 . Assault . | . . . . . . Garrison 2 | . . . . 2 . Intercept . | . . . . . . Searches Triggered . | . . . . . . Construction Impeded . | . . . . . . Haulers Reinforced . | . . . . . . Active Scanning Responses . | . . . . . . Cargo Convoy Interrupts . | . . . . . . Stealth | -11 -10 -10 -9 -8 -8 --------- Run | Yrd Mat Min Mat Mat Gar Distress Signals 6 | . . . 4 2 . Communications Jammed . | . . . . . . Distress Signals . | . . . . . . Times Spotted 45 | . . 1 28 14 2 Peak Tracking Total 6 | . . 1 6 4 2 Tactical Retreats 1 | . . . 1 . . Traps | -11 -10 -10 -9 -8 -8 ------- Run | Yrd Mat Min Mat Mat Gar Traps Triggered 3 | . . . 2 . 1 Indirectly . | . . . . . . Trap Hack Attempts . | . . . . . . Triggered . | . . . . . . Disarmed . | . . . . . . Reprogrammed . | . . . . . . Reused . | . . . . . . Traps Extracted . | . . . . . . Installed . | . . . . . . Triggered . | . . . . . . Machines | -11 -10 -10 -9 -8 -8 ---------- Run | Yrd Mat Min Mat Mat Gar Machines Disabled 7 | . . . 4 3 . Max in Single Turn 4 | . . . 4 1 . Machines Repaired . | . . . . . . Machines Dismantled . | . . . . . . Machines Sabotaged . | . . . . . . Overloaded Fab Kills . | . . . . . . Hacking | -11 -10 -10 -9 -8 -8 --------- Run | Yrd Mat Min Mat Mat Gar Machines Accessed 9 | . 1 1 4 1 2 Terminals 7 | . . 1 4 . 2 Fabricators . | . . . . . . Repair Stations . | . . . . . . Recycling Units 1 | . 1 . . . . Scanalyzers . | . . . . . . Garrison Access 1 | . . . . 1 . Total Hacks 17 | . 1 2 8 1 5 Successful 8 | . 1 1 5 1 . Failed 9 | . . 1 3 . 5 Catastrophic 2 | . . . 1 . 1 Database Lockouts . | . . . . . . Manual 12 | . 1 2 8 . 1 Terminals 15 | . . 2 8 . 5 Fabricators . | . . . . . . Repair Stations . | . . . . . . Recycling Units 1 | . 1 . . . . Scanalyzers . | . . . . . . Garrison Access 1 | . . . . 1 . Terminal Hacks . | . . . . . . Fabricator Hacks . | . . . . . . Repair Station Hacks . | . . . . . . Recycling Unit Hacks . | . . . . . . Scanalyzer . | . . . . . . Garrison Access Hacks 1 | . . . . 1 . Unlock Access 1 | . . . . 1 . Unauthorized Hacks 7 | . 1 1 5 . . Terminals 6 | . . 1 5 . . Assimilate 2 | . . . 2 . . Botnet 2 | . . 1 1 . . Skim 2 | . . . 2 . . Fabricators . | . . . . . . Repair Stations . | . . . . . . Recycling Units 1 | . 1 . . . . Tunnel 1 | . 1 . . . . Scanalyzers . | . . . . . . Garrison Access . | . . . . . . Data Cores Recovered . | . . . . . . Used . | . . . . . . Hacking Detections 6 | . . 1 2 1 2 Full Trace Events 1 | . . . . . 1 Feedback Events . | . . . . . . Feedback Blocked . | . . . . . . Robot Schematics Acquired . | . . . . . . Robots Built . | . . . . . . Authchips . | . . . . . . Time . | . . . . . . Total Robot Build Rating . | . . . . . . Part Schematics Acquired . | . . . . . . Parts Built . | . . . . . . Authchips . | . . . . . . Time . | . . . . . . Total Part Build Rating . | . . . . . . Parts Repaired . | . . . . . . Time . | . . . . . . Parts Recycled . | . . . . . . Recycled Matter . | . . . . . . Retrieved Matter . | . . . . . . Retrieved Components . | . . . . . . Parts Scanalyzed . | . . . . . . Part Schematics Acquired . | . . . . . . Parts Damaged . | . . . . . . Bothacking | -11 -10 -10 -9 -8 -8 ------------ Run | Yrd Mat Min Mat Mat Gar Used RIF Installer . | . . . . . . Robots Hacked . | . . . . . . Non-combat . | . . . . . . Combat . | . . . . . . Robot Hacks Applied . | . . . . . . Relay Couplers Released . | . . . . . . Fabnet Peak Effective % . | . . . . . . Robots Rewired . | . . . . . . Allies Hacked . | . . . . . . Hacks Repelled . | . . . . . . Allies | -11 -10 -10 -9 -8 -8 -------- Run | Yrd Mat Min Mat Mat Gar Total Allies 1 | . . . 1 . . Largest Group 1 | . . . 1 . . Highest-Rated Group 10 | . . . 10 . . Highest-Rated Ally 10 | . . . 10 . . Total Orders . | . . . . . . Ally Attacks . | . . . . . . Total Damage . | . . . . . . Kills . | . . . . . . Allies Corrupted . | . . . . . . Allies Melted . | . . . . . . Intel | -11 -10 -10 -9 -8 -8 ------- Run | Yrd Mat Min Mat Mat Gar Active Infowar (turns) 1892 | 145 109 212 834 409 183 Terrain 1425 | . . . 833 409 183 Seismic 1653 | 145 109 212 824 363 . Robot Analysis Total . | . . . . . . Derelict Logs Recovered . | . . . . . . Drone Launches . | . . . . . . Drone Recoveries . | . . . . . . Exploration | -11 -10 -10 -9 -8 -8 ------------- Run | Yrd Mat Min Mat Mat Gar Turns Passed 2006 | 259 109 212 834 409 183 Spaces Moved 935 | 127 62 121 359 157 109 Core 4 | 4 . . . . . Treads 931 | 123 62 121 359 157 109 Legs . | . . . . . . Wheels . | . . . . . . Hover . | . . . . . . Flight . | . . . . . . Fastest Speed 50 | 50 160 160 160 155 155 Average Speed 163 | 156 160 160 161 180 155 Slowest Speed 240 | 160 160 160 240 240 155 Overloaded Moves . | . . . . . . Propulsion Burnouts . | . . . . . . Robots Hopped . | . . . . . . Potential Cave-ins . | . . . . . . Cave-ins Triggered . | . . . . . . Exploration Rate (%) 24 | 8 16 28 41 24 30 Regions Visited 5 Branch Regions 1 Pre-discovered Areas 2 | . 1 1 . . . Known Exits Taken 1 | . . . . 1 . Unknown Exits Taken 4 | 1 1 1 1 . . Scrap Searched . | . . . . . . Spaces Dug . | . . . . . . Terrain Destroyed 68 | . . . 40 28 . Melee . | . . . . . . Projectile . | . . . . . . AOE 68 | . . . 40 28 . Terrain Rammed . | . . . . . . Walls Destroyed . | . . . . . . Machines Disabled . | . . . . . . Actions | -11 -10 -10 -9 -8 -8 --------- Run | Yrd Mat Min Mat Mat Gar Total 1163 | 157 66 131 482 212 115 Wait 20 | . . 1 18 1 . Move 930 | 126 61 120 358 156 109 Hop . | . . . . . . Pick Up 19 | 8 2 1 8 . . Fast Attach 16 | 7 . . 6 3 . Attach 7 | . . . 4 3 . Detach . | . . . . . . Swap 12 | . . 1 5 6 . Drop 13 | 2 . 2 6 3 . Fire 142 | 14 3 4 75 40 6 Melee . | . . . . . . Ram . | . . . . . . Kick . | . . . . . . Crush 4 | . . 2 2 . . Escape Stasis . | . . . . . . Rewire . | . . . . . . Trap . | . . . . . . Miscellaneous . | . . . . . . Route ------- -11/Scrapyard -10/Materials -10/Mines -9/Materials -8/Materials -8/Garrison History --------- Turn | Location | Event 8 | -11/Scrapyard | Discovered new exit (range 15) 260 | -11/Scrapyard | Entered Materials 318 | -10/Materials | Build established: Mutant 361 | -10/Materials | Discovered new exit (range 6) 369 | -10/Materials | Entered Mines 563 | -10/Mines | YI-UF0 nonchalantly dropped a Grenade Launcher on the ground 572 | -10/Mines | Learned location of Storage (-9) 576 | -10/Mines | Discovered new exit (range 4) 581 | -10/Mines | Entered Materials 581 | -9/Materials | Evolved 2 slots: Propulsion x1, Utility x1 1295 | -9/Materials | Build established: Scavenger-Mutant 1405 | -9/Materials | Discovered new exit (range 4) 1415 | -9/Materials | Entered another Materials area 1415 | -8/Materials | Evolved 2 slots: Propulsion x1, Utility x1 1783 | -8/Materials | Met 7R-MNS 1809 | -8/Materials | Lost 3 parts (1u2w) 1823 | -8/Materials | Identified exit to Garrison 1824 | -8/Materials | Entered Garrison 1908 | -8/Garrison | Triggered checkpoint 2002 | -8/Garrison | System corruption reached 10% 2007 | -8/Garrison | Self-destructed Last Messages --------------- 01823_ EXIT=UNLOCKED: GARRISON LOCATION=GARRISON GOAL=ESCAPE 01885_ Connecting with Garrison Terminal... 01983_ Triggered Alarm Trap. 01983_ An alarm sounds. 01984_ Connecting with Garrison Terminal... 01984_ ALERT: Suspicious activity at Terminal G002. Transmitting hostile system tracking data. 01995_ Imp. Ion Engine destroyed. 01995_ Adv. Treads destroyed. 01995_ System corrupted by crushing effect (+4). 01995_ System corrupted by crushing effect (+1). 01999_ B-36 Bruiser destroyed. 02001_ Lgt. Treads destroyed. 02001_ Autogun destroyed. 02001_ System corrupted by crushing effect (+2). 02001_ System corrupted by crushing effect (+4). 02003_ Terrain Scan Processor destroyed. 02003_ System corrupted by crushing effect (+1). Map ----- +----------------------------------------------------+ | ????????????????????????????????????????????????? | | ????????????????????????????????????????????????? | | ????????????????????????????????????????????????? | | ????????????????????????????????????????????????? | | ????????????????????????????????????????????????? | | ????????????????????????????????????????????????? | | ????????????????????????????????????????????????? | | ????????????????????????????????????????????????? | | ????????????????????????????????????????????????? | | ????????????????????????????????????????????????? | | ????????????????????????????????????????????????? | | ????????????????????????????????????????????????? | | ????????????????????????????????????????????????? | | ????????????????????????????????????????????????? | | ????????????????????????????????????????????????? | | ????????????????????????????????????????????????? | | ??????????????????????####??????????????????????? | | ??????????????????????#""#??????????????????????? | | ??????????????????????#T #??????????????????????? | | ??????????????????????#" #??????????????????????? | | ??????????????????????## #??????????????????????? | | ???????????????????????# #??????????????????????? | | ???????????????????????# #??????????????????????? | | ???????????????????????# #??????????????????????? | | ???????????????????????# ### ##### #????????? | | ???????????????????????#@% ????????? | | ???????????????????????# b ????????? | | ???????????????????????# ###########???????????? | | ???????????????????????# #?????????????????????? | | ???????????????????????# #?????????????????????? | | ??????????????########## #####################?? | | ?????????? ^ #?? | | ?????????? #?? | | ?????????? #?? | | ???????????################################ #?? | | ??????????????????????????????????????????# #?? | | ??????????????????????????????????????????# #?? | | ??????????????????????????????????????????# #?? | | ??????????????????????????????????????????# ### | | ??????????????????????????????????????????# ## | | ??????????????????????????????????????????# ## | | ??????????????????????????????????????????# | | ??????????????????????????????????????????# | | ??????????????????????????????????????????# | | ??????????????????????????????????????????# ## | | ??????????????????????????????????????????# ## | | ??????????????????????????????????????????" | | ??????????????????????????????????????????" | | ??????????????????????????????????????????" | | ??????????????????????????????????????????" | +----------------------------------------------------+ Best States ------------- Heat Dissipation 31 Energy Generation 12 Energy Capacity 265 Matter Stores 300 Matter Capacity 300 Sight Range 16 Terrain Scan Range 16 Terrain Scan Density 85 Evasion (%) 40 Recoil Reduction 3 Item Schematics ----------------- None Robot Schematics ------------------ None Fabricated ------------ Nothing Repaired ---------- Nothing Alien Tech Used ----------------- None Achievements -------------- None Challenges ------------ None Game ------ Seed ThrowingElectronLoader Manual? 0 Play Time 00:11:42 Cumulative 148.5 hours Start 2025.07.12 @ 00:52:55 End 2025.07.12 @ 13:05:45 Sessions 3 Manual Loads 0 Difficulty Rogue Special Mode None Game No. 380 Rogue 380 Adventurer 0 Explorer 0 Win Type - Total 4 Types 3/0/1/0/0/0/0/0/0/0 Lore% 69 Gallery% 58 Achievement% 48 Wizard Run 0 Options --------- Layout 0 ASCII 0 Keyboard 0 Movement Numpad Keybinds 0 Fullscreen 2 Font 18/Terminus Map View 76x50 Zoom Use 0% Tactical HUD 1 Map Filters NONE Filters NONE Steam 1 RUN: 78250fe2-971d-4e20-85ce-dc48d957d48f